fUSD/lending_fUSD_20240211
["ID","MTS","AMOUNT","RATE_DAILY","PERIOD"]
[313744005,1707655841696,-503.78859264,0.00035616,2]
[313744006,1707655841705,-870.33,0.00035616,2]
[313744007,1707655841715,-503.45683234,0.00035616,2]
[313744008,1707655841725,-500.0,0.00035616,2]
[313744009,1707655841735,-565.02,0.00035616,2]
[313744010,1707655841744,-500.0,0.00035616,2]
[313744011,1707655841753,-653.29,0.00035616,2]
[313744012,1707655841762,-500.0,0.00035616,2]
[313744013,1707655841772,-560.81394615,0.00035616,2]
[313744014,1707655841781,-554.49272379,0.00035616,2]
[313744015,1707655841790,-500.0,0.00035616,2]
[313744016,1707655841799,-500.0,0.00035616,2]
[313744017,1707655841808,-500.0,0.00035616,2]
[313744018,1707655841818,-298.59586031,0.00035616,2]
[313744019,1707655841826,-416.55748289,0.00035616,2]
[313744020,1707655841835,-508.208898,0.00035616,2]
[313744021,1707655841845,-500.0,0.00035616,2]
[313744022,1707655841854,-500.0,0.00035616,2]
[313744023,1707655841863,-236.91395013,0.00035616,2]
[313744024,1707655841872,-561.72,0.00035616,2]
[313744025,1707655841881,-500.0,0.00035616,2]
[313744026,1707655841890,-500.0,0.00035616,2]
[313744027,1707655841899,-500.0,0.00035616,2]
[313744028,1707655841908,-562.23123812,0.00035616,2]
[313744029,1707655841918,-500.0,0.00035616,2]
[313744030,1707655841927,-506.08077371,0.00035616,2]
[313744031,1707655841937,-500.0,0.00035616,4]
[313744032,1707655841945,-500.0,0.00035616,2]
[313744033,1707655841955,-671.32,0.00035616,2]
[313744034,1707655841964,-500.0,0.00035616,2]
[313744035,1707655841973,-500.0,0.00035616,2]
[313744036,1707655841983,-500.0,0.00035616,2]
[313744037,1707655841992,-500.0,0.00035616,2]
[313744038,1707655842001,-520.04401571,0.00035616,2]
[313744039,1707655842010,-378.35450743,0.00035616,2]
[313744040,1707655842019,-524.80437477,0.00035616,2]
[313744041,1707655842028,-500.0,0.00035616,2]
[313744042,1707655842038,-157.79253761,0.00035616,2]
[313744043,1707655842047,-500.0,0.00035616,2]
[313744044,1707655842057,-500.0,0.00035616,2]
[313744045,1707655842066,-626.15684748,0.00035616,2]
[313744046,1707655842075,-500.0,0.00035616,2]
[313744047,1707655842085,-500.0,0.00035616,2]
[313744048,1707655842095,-230.25202534,0.00035616,2]
[313744049,1707655842104,-500.0,0.00035616,2]
[313744050,1707655842113,-521.85441579,0.00035616,2]
[313744051,1707655842123,-578.19,0.00035616,2]
[313744052,1707655842133,-500.0,0.00035616,2]
[313744053,1707655842143,-500.0,0.00035616,2]
[313744054,1707655842152,-500.0,0.00035616,2]
[313744055,1707655842161,-500.0,0.00035616,2]
[313744056,1707655842171,-183.23717981,0.00035616,2]
[313744057,1707655842180,-500.0,0.00035616,2]
[313744058,1707655842190,-500.0,0.00035616,2]
[313744059,1707655842199,-412.58877462,0.00035616,2]
[313744060,1707655842209,-500.0,0.00035616,2]
[313744061,1707655842218,-500.0,0.00035616,2]
[313744062,1707655842228,-500.0,0.00035616,2]
[313744063,1707655842237,-733.94,0.00035616,2]
[313744064,1707655842246,-500.0,0.00035616,2]
[313744065,1707655842256,-500.0,0.00035616,2]
[313744066,1707655842265,-500.0,0.00035616,2]
[313744067,1707655842275,-561.06137011,0.00035616,2]
[313744068,1707655842284,-500.0,0.00035616,2]
[313744069,1707655842294,-500.0,0.00035616,2]
[313744070,1707655842304,-500.0,0.00035616,2]
[313744071,1707655842313,-500.0,0.00035616,2]
[313744072,1707655842323,-500.0,0.00035616,2]
[313744073,1707655842336,-500.0,0.00035616,2]
[313744074,1707655842345,-500.0,0.00035616,2]
[313744075,1707655842355,-500.0,0.00035616,2]
[313744076,1707655842364,-500.0,0.00035616,2]
[313744077,1707655842374,-500.0,0.00035616,2]
[313744078,1707655842383,-500.0,0.00035616,2]
[313744079,1707655842393,-505.29098974,0.00035616,2]
[313744080,1707655842402,-514.3,0.00035616,2]
[313744081,1707655842411,-500.0,0.00035616,2]
[313744082,1707655842421,-511.67611047,0.00035616,2]
[313744083,1707655842431,-511.92477253,0.00035616,2]
[313744084,1707655842440,-500.0,0.00035616,2]
[313744085,1707655842450,-1261.23,0.00035616,2]
[313744086,1707655842459,-500.0,0.00035616,2]
[313744087,1707655842468,-808.4,0.00035616,2]
[313744088,1707655842477,-500.0,0.00035616,2]
[313744089,1707655842486,-500.0,0.00035616,2]
[313744090,1707655842495,-563.72,0.00035616,2]
[313744091,1707655842504,-1119.73,0.00035616,2]
[313744092,1707655842513,-500.0,0.00035616,2]
[313744093,1707655842524,-271.1411061,0.00035616,2]
[313744094,1707655842533,-522.63332596,0.00035616,2]
[313744095,1707655842542,-674.6,0.00035616,2]
[313744096,1707655842551,-500.0,0.00035616,2]
[313744097,1707655842560,-500.0,0.00035616,2]
[313744098,1707655842570,-500.0,0.00035616,2]
[313744099,1707655842579,-1094.72,0.00035616,2]
[313744100,1707655842588,-508.31131048,0.00035616,2]
[313744101,1707655842597,-1388.25,0.00035616,2]
[313744102,1707655842606,-500.0,0.00035616,2]
[313744103,1707655842615,-560.6,0.00035616,2]
[313744104,1707655842624,-500.0,0.00035616,2]
[313744105,1707655842633,-202.68091001,0.00035616,2]
[313744107,1707655842642,-500.0,0.00035616,2]
[313744109,1707655842651,-500.0,0.00035616,2]
[313744111,1707655842661,-500.0,0.00035616,2]
[313744113,1707655842670,-500.0,0.00035616,2]
[313744115,1707655842680,-496.93117345,0.00035616,2]
[313744117,1707655842689,-1374.95,0.00035616,2]
[313744119,1707655842698,-500.0,0.00035616,2]
[313744121,1707655842708,-500.0,0.00035616,2]
[313744123,1707655842717,-511.24726642,0.00035616,2]
[313744125,1707655842726,-879.46,0.00035616,2]
[313744127,1707655842735,-185.00544427,0.00035616,2]
[313744129,1707655842744,-506.47670232,0.00035616,2]
[313744131,1707655842753,-500.0,0.00035616,2]
[313744134,1707655842762,-602.4,0.00035616,2]
[313744137,1707655842771,-500.0,0.00035616,2]
[313744138,1707655842781,-500.0,0.00035616,2]
[313744139,1707655842790,-1319.63,0.00035616,2]
[313744140,1707655842799,-500.0,0.00035616,2]
[313744141,1707655842808,-634.74,0.00035616,2]
[313744142,1707655842817,-639.93,0.00035616,2]
[313744143,1707655842827,-981.93,0.00035616,2]
[313744144,1707655842836,-500.0,0.00035616,2]
[313744145,1707655842845,-500.0,0.00035616,2]
[313744146,1707655842854,-1000.0,0.00035616,7]
[313744147,1707655842863,-500.0,0.00035616,2]
[313744148,1707655842872,-272.24302634,0.00035616,2]
[313744149,1707655842881,-500.0,0.00035616,2]
[313744150,1707655842890,-544.68,0.00035616,2]
[313744151,1707655842899,-500.0,0.00035616,2]
[313744152,1707655842908,-773.34,0.00035616,2]
[313744153,1707655842918,-529.31,0.00035616,2]
[313744154,1707655842927,-500.0,0.00035616,2]
[313744155,1707655842937,-500.0,0.00035616,2]
[313744156,1707655842946,-509.39805327,0.00035616,2]
[313744157,1707655842956,-500.0,0.00035616,2]
[313744158,1707655842965,-988.16,0.00035616,2]
[313744159,1707655842974,-994.82,0.00035616,2]
[313744160,1707655842984,-533.52,0.00035616,2]
[313744162,1707655842993,-515.06230173,0.00035616,2]
[313744164,1707655843002,-500.0,0.00035616,2]
[313744165,1707655843012,-569.85653746,0.00035616,2]
[313744166,1707655843021,-671.02,0.00035616,2]
[313744167,1707655843031,-926.35,0.00035616,2]
[313744169,1707655843041,-500.0,0.00035616,2]
[313744171,1707655843050,-885.55,0.00035616,2]
[313744173,1707655843059,-699.95,0.00035616,2]
[313744175,1707655843068,-701.19,0.00035616,2]
[313744177,1707655843078,-213.35535793,0.00035616,2]
[313744179,1707655843087,-500.0,0.00035616,2]
[313744180,1707655843096,-1310.37,0.00035616,2]
[313744182,1707655843106,-500.0,0.00035616,2]
[313744183,1707655843115,-1371.84,0.00035616,2]
[313744184,1707655843124,-521.94,0.00035616,2]
[313744185,1707655843134,-500.0,0.00035616,2]
[313744186,1707655843143,-164.58247298,0.00035616,2]
[313744187,1707655843153,-500.0,0.00035616,2]
[313744188,1707655843163,-1150.02,0.00035616,2]
[313744190,1707655843173,-650.15,0.00035616,2]
[313744192,1707655843182,-500.0,0.00035616,2]
[313744193,1707655843192,-1101.17,0.00035616,2]
[313744194,1707655843201,-500.0,0.00035616,2]
[313744195,1707655843210,-995.05,0.00035616,2]
[313744196,1707655843278,-500.0,0.00035616,2]
[313744197,1707655843288,-500.0,0.00035616,2]
[313744198,1707655843297,-500.0,0.00035616,2]
[313744199,1707655843306,-973.3,0.00035616,2]
[313744200,1707655843316,-708.42,0.00035616,2]
[313744201,1707655843326,-1054.78,0.00035616,2]
[313744202,1707655843344,-1070.5,0.00035616,2]
[313744203,1707655843354,-500.0,0.00035616,2]
[313744204,1707655843363,-529.67367396,0.00035616,2]
[313744205,1707655843372,-1456.47,0.00035616,2]
[313744206,1707655843381,-500.0,0.00035616,2]
[313744207,1707655843390,-500.0,0.00035616,2]
[313744208,1707655843400,-500.0,0.00035616,2]
[313744209,1707655843409,-1278.26,0.00035616,2]
[313744210,1707655843418,-510.21756281,0.00035616,2]
[313744211,1707655843427,-1035.49,0.00035616,2]
[313744212,1707655843437,-1163.3,0.00035616,2]
[313744213,1707655843446,-500.0,0.00035616,2]
[313744214,1707655843455,-529.02554105,0.00035616,2]
[313744215,1707655843464,-514.8558985,0.00035616,30]
[313744216,1707655843473,-542.84953561,0.00035616,2]
[313744217,1707655843482,-500.0,0.00035616,2]
[313744218,1707655843492,-500.0,0.00035616,2]
[313744219,1707655843502,-500.0,0.00035616,2]
[313744220,1707655843511,-500.0,0.00035616,2]
[313744221,1707655843520,-500.0,0.00035616,2]
[313744222,1707655843529,-1177.67,0.00035616,2]
[313744223,1707655843538,-955.06,0.00035616,2]
[313744224,1707655843547,-500.0,0.00035616,2]
[313744225,1707655843556,-365.22427373,0.00035616,2]
[313744226,1707655843565,-500.0,0.00035616,2]
[313744227,1707655843574,-500.0,0.00035616,2]
[313744228,1707655843583,-500.0,0.00035616,2]
[313744229,1707655843592,-500.0,0.00035616,2]
[313744230,1707655843601,-500.0,0.00035616,2]
[313744231,1707655843611,-518.95770444,0.00035616,2]
[313744232,1707655843620,-500.0,0.00035616,2]
[313744233,1707655843628,-1535.23,0.00035616,2]
[313744234,1707655843638,-1129.37,0.00035616,2]
[313744236,1707655843647,-500.0,0.00035616,2]
[313744238,1707655843656,-500.0,0.00035616,2]
[313744240,1707655843665,-500.0,0.00035616,2]
[313744242,1707655843675,-500.0,0.00035616,2]
[313744244,1707655843684,-1554.94,0.00035616,2]
[313744246,1707655843693,-500.0,0.00035616,2]
[313744248,1707655843701,-500.0,0.00035616,2]
[313744251,1707655843710,-500.0,0.00035616,2]
[313744252,1707655843719,-1410.9,0.00035616,2]
[313744254,1707655843728,-500.0,0.00035616,2]
[313744257,1707655843738,-500.0,0.00035616,2]
[313744258,1707655843747,-516.34175562,0.00035616,2]
[313744259,1707655843755,-500.0,0.00035616,2]
[313744260,1707655843764,-670.47,0.00035616,2]
[313744261,1707655843773,-500.0,0.00035616,2]
[313744262,1707655843783,-500.0,0.00035616,2]
[313744264,1707655843791,-500.0,0.00035616,2]
[313744265,1707655843800,-518.9096366,0.00035616,2]
[313744266,1707655843810,-500.0,0.00035616,2]
[313744267,1707655843820,-1312.31,0.00035616,2]
[313744268,1707655843829,-500.0,0.00035616,2]
[313744269,1707655843839,-544.14304546,0.00035616,2]
[313744270,1707655843849,-500.0,0.00035616,2]
[313744271,1707655843860,-510.05394667,0.00035616,2]
[313744272,1707655843871,-1074.14,0.00035616,2]
[313744273,1707655843881,-174.07277383,0.00035616,2]
[313744274,1707655843890,-500.0,0.00035616,2]
[313744275,1707655843899,-500.0,0.00035616,2]
[313744276,1707655843909,-547.26,0.00035616,2]
[313744277,1707655843918,-500.0,0.00035616,2]
[313744278,1707655843926,-505.70201584,0.00035616,2]
[313744279,1707655843935,-500.0,0.00035616,2]
[313744280,1707655843944,-489.44451483,0.00035616,2]
[313744281,1707655843953,-500.0,0.00035616,2]
[313744282,1707655843962,-1000.0,0.00035616,2]
[313744283,1707655843971,-500.0,0.00035616,2]
[313744284,1707655843981,-500.0,0.00035616,2]
[313744285,1707655843990,-500.0,0.00035616,2]
[313744286,1707655843999,-500.0,0.00035616,2]
[313744287,1707655844008,-377.91576573,0.00035616,2]
[313744288,1707655844018,-500.0,0.00035616,2]
[313744289,1707655844027,-500.0,0.00035616,2]
[313744290,1707655844036,-522.11201344,0.00035616,2]
[313744291,1707655844045,-2082.44,0.00035616,2]
[313744292,1707655844055,-500.0,0.00035616,2]
[313744293,1707655844065,-500.0,0.00035616,2]
[313744294,1707655844074,-500.0,0.00035616,7]
[313744295,1707655844083,-713.26,0.00035616,2]
[313744296,1707655844093,-500.0,0.00035616,2]
[313744297,1707655844102,-500.0,0.00035616,2]
[313744298,1707655844111,-500.0,0.00035616,2]
[313744299,1707655844121,-500.0,0.00035616,2]
[313744300,1707655844130,-618.3,0.00035616,2]
[313744301,1707655844139,-587.68,0.00035616,2]
[313744302,1707655844148,-521.37643193,0.00035616,2]
[313744303,1707655844157,-500.0,0.00035616,2]
[313744304,1707655844167,-197.70171452,0.00035616,2]
[313744305,1707655844176,-500.0,0.00035616,2]
[313744306,1707655844185,-500.0,0.00035616,2]
[313744307,1707655844194,-500.0,0.00035616,2]
[313744308,1707655844203,-500.0,0.00035616,2]
[313744309,1707655844212,-569.03183262,0.00035616,2]
[313744310,1707655844221,-500.0,0.00035616,2]
[313744311,1707655844230,-1262.4,0.00035616,2]
[313744312,1707655844240,-495.15171068,0.00035616,2]
[313744313,1707655844249,-514.63535096,0.00035616,2]
[313744314,1707655844258,-529.49728384,0.00035616,2]
[313744315,1707655844267,-506.1196544,0.00035616,2]
[313744316,1707655844277,-500.0,0.00035616,2]
[313744317,1707655844286,-500.0,0.00035616,2]
[313744318,1707655844295,-500.0,0.00035616,2]
[313744319,1707655844304,-500.0,0.00035616,2]
[313744320,1707655844312,-812.45,0.00035616,2]
[313744321,1707655844323,-500.0,0.00035616,2]
[313744322,1707655844333,-723.13,0.00035616,2]
[313744323,1707655844347,-500.0,0.00035616,2]
[313744324,1707655844357,-500.0,0.00035616,2]
[313744325,1707655844366,-500.0,0.00035616,2]
[313744326,1707655844375,-514.64304481,0.00035616,2]
[313744327,1707655844385,-500.0,0.00035616,2]
[313744328,1707655844395,-500.0,0.00035616,2]
[313744329,1707655844404,-500.0,0.00035616,2]
[313744330,1707655844414,-1031.16,0.00035616,2]
[313744331,1707655844423,-1252.15,0.00035616,2]
[313744332,1707655844433,-506.19653832,0.00035616,2]
[313744333,1707655844441,-500.0,0.00035616,2]
[313744334,1707655844451,-500.0,0.00035616,2]
[313744335,1707655844460,-1174.8,0.00035616,2]
[313744336,1707655844469,-507.49207599,0.00035616,2]
[313744337,1707655844478,-500.0,0.00035616,2]
[313744338,1707655844487,-1000.0,0.00035616,7]
[313744339,1707655844496,-500.0,0.00035616,2]
[313744340,1707655844505,-1327.81,0.00035616,2]
[313744341,1707655844513,-500.0,0.00035616,2]
[313744342,1707655844522,-500.98,0.00035616,2]
[313744343,1707655844532,-513.73,0.00035616,2]
[313744344,1707655844542,-503.29281711,0.00035616,2]
[313744345,1707655844551,-500.0,0.00035616,2]
[313744346,1707655844559,-500.0,0.00035616,2]
[313744347,1707655844570,-500.0,0.00035616,2]
[313744348,1707655844579,-500.0,0.00035616,2]
[313744349,1707655844589,-500.0,0.00035616,2]
[313744350,1707655844598,-500.0,0.00035616,2]
[313744351,1707655844609,-507.89526576,0.00035616,2]
[313744352,1707655844620,-10000.0,0.00035616,2]
[313744353,1707655844630,-502.94442675,0.00035616,2]
[313744354,1707655844643,-500.0,0.00035616,2]
[313744355,1707655844652,-238.57533178,0.00035616,2]
[313744356,1707655844661,-500.0,0.00035616,2]
[313744357,1707655844671,-514.97126937,0.00035616,2]
[313744358,1707655844680,-1042.21,0.00035616,2]
[313744359,1707655844689,-1459.38,0.00035616,2]
[313744360,1707655844698,-500.0,0.00035616,2]
[313744361,1707655844707,-500.0,0.00035616,2]
[313744362,1707655844716,-500.0,0.00035616,2]
[313744363,1707655844726,-597.61549857,0.00035616,2]
[313744364,1707655844735,-507.05,0.00035616,2]
[313744365,1707655844744,-514.65200651,0.00035616,2]
[313744366,1707655844754,-500.0,0.00035616,2]
[313744367,1707655844764,-500.0,0.00035616,2]
[313744368,1707655844773,-472.4526914,0.00035616,2]
[313744369,1707655844785,-500.0,0.00035616,2]
[313744370,1707655844794,-500.0,0.00035616,2]
[313744371,1707655844804,-500.0,0.00035616,2]
[313744372,1707655844813,-531.47600742,0.00035616,2]
[313744373,1707655844821,-500.0,0.00035616,2]
[313744374,1707655844831,-638.34,0.00035616,2]
[313744375,1707655844840,-500.0,0.00035616,2]
[313744376,1707655844849,-504.81015762,0.00035616,2]
[313744377,1707655844859,-500.0,0.00035616,2]
[313744378,1707655844871,-500.0,0.00035616,2]
[313744379,1707655844881,-500.0,0.00035616,2]
[313744380,1707655844894,-500.0,0.00035616,2]
[313744381,1707655844903,-500.0,0.00035616,2]
[313744382,1707655844913,-500.0,0.00035616,2]
[313744383,1707655844924,-1861.31,0.00035616,2]
[313744384,1707655844934,-500.0,0.00035616,2]
[313744385,1707655844944,-1001.36,0.00035616,2]
[313744386,1707655844953,-500.0,0.00035616,2]
[313744387,1707655844963,-500.0,0.00035616,2]
[313744388,1707655844973,-500.0,0.00035616,2]
[313744389,1707655844984,-2145.87,0.00035616,2]
[313744390,1707655844993,-1013.00332241,0.00035616,7]
[313744391,1707655845002,-500.0,0.00035616,2]
[313744392,1707655845012,-500.0,0.00035616,2]
[313744393,1707655845022,-500.0,0.00035616,2]
[313744394,1707655845031,-500.0,0.00035616,2]
[313744395,1707655845041,-500.0,0.00035616,2]
[313744396,1707655845051,-500.0,0.00035616,2]
[313744397,1707655845061,-934.28,0.00035616,2]
[313744398,1707655845070,-564.61756805,0.00035616,2]
[313744399,1707655845079,-500.0,0.00035616,2]
[313744400,1707655845089,-500.0,0.00035616,2]
[313744401,1707655845098,-500.0,0.00035616,2]
[313744402,1707655845107,-1666.06,0.00035616,2]
[313744403,1707655845116,-510.72858861,0.00035616,2]
[313744404,1707655845126,-500.0,0.00035616,2]
[313744405,1707655845135,-1497.23,0.00035616,2]
[313744406,1707655845146,-500.0,0.00035616,2]
[313744407,1707655845156,-510.8747982,0.00035616,2]
[313744408,1707655845167,-500.0,0.00035616,2]
[313744409,1707655845177,-500.0,0.00035616,2]
[313744410,1707655845186,-1256.32,0.00035616,2]
[313744411,1707655845195,-613.88,0.00035616,2]
[313744412,1707655845204,-510.21413032,0.00035616,2]
[313744413,1707655845214,-331.69831082,0.00035616,2]
[313744414,1707655845223,-500.0,0.00035616,2]
[313744415,1707655845232,-500.0,0.00035616,2]
[313744416,1707655845242,-500.0,0.00035616,2]
[313744417,1707655845251,-278.63029581,0.00035616,2]
[313744418,1707655845260,-1474.59,0.00035616,2]
[313744419,1707655845270,-574.68268247,0.00035616,2]
[313744420,1707655845279,-600.52694948,0.00035616,2]
[313744421,1707655845289,-359.83398635,0.00035616,2]
[313744422,1707655845298,-500.0,0.00035616,2]
[313744423,1707655845307,-509.76319636,0.00035616,2]
[313744424,1707655845317,-500.0,0.00035616,2]
[313744425,1707655845327,-777.41,0.00035616,2]
[313744426,1707655845342,-500.0,0.00035616,2]
[313744427,1707655845351,-702.15,0.00035616,2]
[313744428,1707655845360,-500.0,0.00035616,2]
[313744429,1707655845369,-500.0,0.00035616,2]
[313744430,1707655845378,-770.44,0.00035616,2]
[313744431,1707655845388,-2223.95,0.00035616,2]
[313744432,1707655845397,-175.65471017,0.00035616,2]
[313744433,1707655845407,-509.94153095,0.00035616,2]
[313744434,1707655845416,-514.06039271,0.00035616,2]
[313744435,1707655845428,-500.0,0.00035616,2]
[313744436,1707655845438,-500.0,0.00035616,2]
[313744437,1707655845448,-914.93,0.00035616,2]
[313744438,1707655845457,-500.0,0.00035616,2]
[313744439,1707655845466,-1171.46,0.00035616,2]
[313744440,1707655845475,-500.0,0.00035616,2]
[313744441,1707655845484,-531.48631682,0.00035616,2]
[313744442,1707655845493,-500.0,0.00035616,2]
[313744443,1707655845503,-500.0,0.00035616,2]
[313744444,1707655845512,-500.0,0.00035616,2]
[313744445,1707655845521,-500.0,0.00035616,2]
[313744446,1707655845531,-500.0,0.00035616,2]
[313744447,1707655845542,-500.0,0.00035616,2]
[313744448,1707655845552,-500.0,0.00035616,2]
[313744449,1707655845562,-500.0,0.00035616,2]
[313744450,1707655845570,-500.0,0.00035616,2]
[313744451,1707655845580,-770.73,0.00035616,2]
[313744452,1707655845589,-1968.34,0.00035616,2]
[313744453,1707655845598,-1108.41,0.00035616,2]
[313744454,1707655845607,-500.0,0.00035616,2]
[313744455,1707655845616,-500.0,0.00035616,2]
[313744456,1707655845627,-1437.64,0.00035616,2]
[313744457,1707655845637,-500.0,0.00035616,2]
[313744458,1707655845648,-500.0,0.00035616,2]
[313744459,1707655845657,-500.0,0.00035616,2]
[313744460,1707655845666,-532.71,0.00035616,2]
[313744461,1707655845675,-512.31748884,0.00035616,2]
[313744462,1707655845684,-500.0,0.00035616,2]
[313744463,1707655845693,-519.44,0.00035616,2]
[313744464,1707655845702,-508.25713637,0.00035616,2]
[313744465,1707655845712,-1570.05,0.00035616,2]
[313744466,1707655845721,-555.11,0.00035616,2]
[313744467,1707655845730,-500.0,0.00035616,2]
[313744468,1707655845740,-500.0,0.00035616,2]
[313744469,1707655845749,-500.0,0.00035616,2]
[313744470,1707655845759,-500.0,0.00035616,2]
[313744471,1707655845768,-500.0,0.00035616,2]
[313744472,1707655845778,-595.76367374,0.00035616,2]
[313744473,1707655845787,-500.0,0.00035616,2]
[313744474,1707655845797,-1083.91,0.00035616,2]
[313744475,1707655845806,-606.59,0.00035616,2]
[313744476,1707655845815,-500.0,0.00035616,2]
[313744477,1707655845824,-500.0,0.00035616,2]
[313744478,1707655845834,-500.0,0.00035616,2]
[313744479,1707655845843,-500.0,0.00035616,2]
[313744480,1707655845853,-509.51928095,0.00035616,2]
[313744481,1707655845864,-500.0,0.00035616,2]
[313744482,1707655845874,-500.0,0.00035616,2]
[313744483,1707655845885,-500.0,0.00035616,2]
[313744484,1707655845895,-500.0,0.00035616,2]
[313744485,1707655845906,-525.31350475,0.00035616,2]
[313744486,1707655845915,-500.0,0.00035616,2]
[313744487,1707655845926,-500.0,0.00035616,2]
[313744488,1707655845938,-500.0,0.00035616,2]
[313744489,1707655845948,-500.0,0.00035616,2]
[313744490,1707655845957,-500.0,0.00035616,2]
[313744491,1707655845967,-500.0,0.00035616,2]
[313744492,1707655845977,-199.14328965,0.00035616,2]
[313744493,1707655845986,-502.19050724,0.00035616,2]
[313744494,1707655845998,-500.0,0.00035616,2]
[313744495,1707655846009,-568.73130245,0.00035616,2]
[313744496,1707655846018,-500.0,0.00035616,2]
[313744497,1707655846027,-500.0,0.00035616,2]
[313744498,1707655846037,-510.34921169,0.00035616,2]
[313744499,1707655846046,-990.85,0.00035616,2]
[313744500,1707655846055,-500.0,0.00035616,2]
[313744501,1707655846065,-500.0,0.00035616,2]
[313744502,1707655846074,-514.81,0.00035616,2]
[313744503,1707655846085,-500.0,0.00035616,2]
[313744504,1707655846094,-512.10096138,0.00035616,2]
[313744506,1707655846103,-1293.02,0.00035616,2]
[313744507,1707655846114,-500.0,0.00035616,2]
[313744508,1707655846123,-500.0,0.00035616,2]
[313744509,1707655846133,-500.0,0.00035616,2]
[313744510,1707655846144,-500.0,0.00035616,2]
[313744511,1707655846154,-526.68731864,0.00035616,2]
[313744512,1707655846164,-524.89835769,0.00035616,2]
[313744513,1707655846174,-500.0,0.00035616,2]
[313744514,1707655846183,-500.0,0.00035616,2]
[313744516,1707655846192,-500.0,0.00035616,2]
[313744518,1707655846202,-500.0,0.00035616,2]
[313744520,1707655846212,-500.0,0.00035616,2]
[313744521,1707655846220,-500.0,0.00035616,2]
[313744523,1707655846231,-500.0,0.00035616,2]
[313744525,1707655846241,-519.25727163,0.00035616,2]
[313744527,1707655846252,-500.0,0.00035616,2]
[313744529,1707655846261,-500.0,0.00035616,2]
[313744531,1707655846271,-510.8310341,0.00035616,2]
[313744533,1707655846280,-532.17,0.00035616,2]
[313744535,1707655846290,-536.67,0.00035616,2]
[313744537,1707655846299,-671.89,0.00035616,2]
[313744539,1707655846309,-500.0,0.00035616,2]
[313744541,1707655846318,-563.43,0.00035616,2]
[313744543,1707655846329,-500.0,0.00035616,2]
[313744545,1707655846341,-1000.0,0.00035616,2]
[313744547,1707655846350,-500.0,0.00035616,2]
[313744548,1707655846360,-536.94,0.00035616,2]
[313744551,1707655846370,-500.0,0.00035616,2]
[313744552,1707655846379,-500.0,0.00035616,2]
[313744554,1707655846389,-500.0,0.00035616,2]
[313744556,1707655846398,-500.0,0.00035616,2]
[313744558,1707655846409,-553.48492911,0.00035616,2]
[313744560,1707655846418,-1616.8,0.00035616,2]
[313744561,1707655846428,-500.0,0.00035616,2]
[313744562,1707655846438,-516.00744399,0.00035616,2]
[313744563,1707655846448,-572.19,0.00035616,2]
[313744564,1707655846458,-500.0,0.00035616,2]
[313744566,1707655846469,-500.0,0.00035616,2]
[313744568,1707655846479,-533.66,0.00035616,2]
[313744570,1707655846488,-500.0,0.00035616,2]
[313744572,1707655846497,-500.0,0.00035616,2]